Workbook

Sheet Sheet1
A4: INSTRUCTIONS: Use this form when a single information collection document involves multiple reporting and recordkeeping requirements. The totals of the figures in cols. should be entered in item 13 of OMB-83-I: cols. (D) &/or (I) = 13a (respondent is only counted once); cols. F & I = 13b; cols. H & K = 13c. (F)Total/(D)Total = (E)Average (H)Total/(F)Total = (G)Average (K)Total/(I)Total = (J)Average NOTE: The columns will calculate automatically. If Col. E's response is something other than annually, i.e., 1/6 years, list as "1/6" & decimal will display. | I4: TITLE OF INFORMATION COLLECTION DOCUMENT | N4: OMB NO.
I6: Special Use Administration | N6: 0596-0082
N9: DATE PREPARED
N11: 2021-11-17
A13: IDENTIFICATION OF REPORTING OR RECORDKEEPING REQUIREMENT | H13: ANNUAL BURDEN
H15: REPORTS | M15: RECORDS | P15: RESPONDENT COST
O17: TOTAL
G18: FORMS NO (S) | H18: NO. OF | I18: NO OF | J18: TOTAL ANNUAL | K18: HOURS | L18: TOTAL | M18: NO. OF | N18: ANNUAL | O18: RECORD- | P18: COST | Q18: TOTAL
A19: SECTION OF | B19: DESCRIPTION | G19: (If "none" | H19: RESPONDENTS | I19: RESPONSES | J19: RESPONSES | K19: PER | L19: HOURS | M19: RECORD- | N19: HOURS PER | O19: KEEPING HOURS | P19: PER | Q19: COST
A20: REGS. | G20: so state) | I20: PER | J20: (Col. D x E) | K20: RESPONSE | L20: (Col. F x G) | M20: KEEPERS | N20: RECORD- | O20: (Col. I x J) | P20: HOUR | Q20: (Col. H x L)
I21: RESPONDENT | N21: KEEPER
A22: (A) | B22: (B) | G22: (C) | H22: (D) | I22: (E) | J22: (F) | K22: (G) | L22: (H) | M22: (I) | N22: (J) | O22: (K) | P22: (L) | Q22: (M)
A23: 36 CFR 251 Subpart B | B23: Powerline Permit | G23: 2700-4j | H23: 48 | I23: 20.00 | J23: =H23*I23 -> 960.00 | K23: 5.000 | L23: =SUM(J23*K23) -> 4,800.00 | M23: 36 | N23: 2.000 | O23: =SUM(M23*N23) -> 72.00 | P23: 26.00 | Q23: =SUM(L23*P23) -> $124,800.00
A24: 36 CFR 251 Subpart B | B24: Powerline Easement | G24: 2700-31 | H24: 6 | I24: 20.00 | J24: =SUM(H24*I24) -> 120.00 | K24: 5.000 | L24: 600.00 | M24: 6 | N24: 2.000 | O24: 12.00 | P24: 26.00 | Q24: =SUM(L24*P24) -> $15,600.00
H25: 0 | J25: 0.00 | L25: 0.00 | O25: 0.00 | Q25: $0.00
J26: 0.00 | L26: 0.00 | O26: 0.00 | Q26: $0.00
J27: 0.00 | L27: 0.00 | O27: 0.00 | Q27: $0.00
J28: 0.00 | L28: 0.00 | O28: 0.00 | Q28: $0.00
B29: SUBTOTAL | J29: =SUM(J23:J28) -> 1,080.00 | L29: =SUM(L23:L28) -> 5,400.00 | M29: =SUM(M23:M28) -> 42.00 | O29: =SUM(O23:O28) -> 84.00 | Q29: =SUM(Q23:Q28) -> $140,400.00
B30: TOTAL OF ALL PAGES | J30: =SUM(J23:J28) -> 1,080.00 | L30: =SUM(L23:L28) -> 5,400.00 | M30: =SUM(M23:M28) -> 42.00 | O30: =SUM(O23:O28) -> 84.00 | Q30: =SUM(Q23:Q28) -> $140,400.00
A31: TOTAL - COLUMNS "F" AND "I" = OMB 831, 13 b; COLUMNS "H" AND "K" = OMB 831, 13c | J31: =SUM(J30+M30) -> 1,122.00 | L31: =SUM(L30+O30) -> 5,484.00
